[Event "Late-Titled-Tuesday-Blitz-March-19-2024"]
[Site "Chess.com"]
[Date "2024.03.19"]
[Round "3"]
[White "kriscacco"]
[Black "iturrizaga"]
[Result "0-1"]
[WhiteElo "2110"]
[BlackElo "3009"]
[TimeControl "180+1"]
[EndTime "14:25:37 PDT"]
[Termination "iturrizaga won by resignation"]

1. d4 {[%clk 0:03:00.9]} 1... Nf6 {[%clk 0:03:00]} 2. Nf3 {[%clk 0:03:00.3]}
2... c5 {[%clk 0:03:00.4]} 3. c3 {[%clk 0:02:57.9]} 3... g6 {[%clk 0:02:59.1]}
4. Bf4 {[%clk 0:02:56.6]} 4... Bg7 {[%clk 0:02:59.4]} 5. e3 {[%clk 0:02:55.8]}
5... O-O {[%clk 0:02:59]} 6. h3 {[%clk 0:02:55.7]} 6... Qb6 {[%clk 0:02:59.5]}
7. Qb3 {[%clk 0:02:54.5]} 7... d6 {[%clk 0:02:59.5]} 8. Nbd2 {[%clk 0:02:53.1]}
8... Be6 {[%clk 0:02:59.9]} 9. Qxb6 {[%clk 0:02:51.8]} 9... axb6 {[%clk
0:03:00.8]} 10. a3 {[%clk 0:02:51.5]} 10... Bd5 {[%clk 0:02:54.1]} 11. Bd3
{[%clk 0:02:48.8]} 11... Bc6 {[%clk 0:02:54.3]} 12. Ke2 {[%clk 0:02:46.8]} 12...
b5 {[%clk 0:02:54.3]} 13. e4 {[%clk 0:02:42.4]} 13... Re8 {[%clk 0:02:39.9]} 14.
Rhe1 {[%clk 0:02:28.2]} 14... c4 {[%clk 0:02:35.8]} 15. Bc2 {[%clk 0:02:27.4]}
15... e5 {[%clk 0:02:36.7]} 16. dxe5 {[%clk 0:02:25.4]} 16... Nh5 {[%clk
0:02:37]} 17. Be3 {[%clk 0:02:18]} 17... dxe5 {[%clk 0:02:37.3]} 18. g3 {[%clk
0:02:15.3]} 18... Nd7 {[%clk 0:02:37]} 19. Nh2 {[%clk 0:01:58.3]} 19... Bf8
{[%clk 0:02:37.2]} 20. Nhf1 {[%clk 0:01:56.4]} 20... Nc5 {[%clk 0:02:36]} 21. f3
{[%clk 0:01:50.7]} 21... Rad8 {[%clk 0:02:32.9]} 22. Red1 {[%clk 0:01:48.9]}
22... Nd3 {[%clk 0:02:27.2]} 23. Bxd3 {[%clk 0:01:48]} 23... cxd3+ {[%clk
0:02:25.3]} 24. Kf2 {[%clk 0:01:46.8]} 24... f5 {[%clk 0:02:26.2]} 25. Bb6
{[%clk 0:01:40]} 25... Rd7 {[%clk 0:02:24.3]} 26. Ne3 {[%clk 0:01:38.2]} 26...
fxe4 {[%clk 0:02:19.7]} 27. fxe4 {[%clk 0:01:36.7]} 27... Nf6 {[%clk 0:02:19.7]}
28. Kf3 {[%clk 0:01:35.4]} 28... Nxe4 {[%clk 0:02:16.3]} 29. Nxe4 {[%clk
0:01:30.8]} 29... Rf7+ {[%clk 0:02:16.6]} 30. Kg2 {[%clk 0:01:30.9]} 30... Bxe4+
{[%clk 0:02:16.7]} 31. Kg1 {[%clk 0:01:31.7]} 31... Rf3 {[%clk 0:02:16.2]} 32.
Kh2 {[%clk 0:01:27.8]} 32... Rf2+ {[%clk 0:02:06.8]} 33. Kg1 {[%clk 0:01:27.2]}
33... Rxb2 {[%clk 0:02:06.5]} 34. a4 {[%clk 0:01:25.9]} 34... bxa4 {[%clk
0:02:03.8]} 35. Rxa4 {[%clk 0:01:25.5]} 35... Bf3 {[%clk 0:02:03.6]} 36. Nc4
{[%clk 0:01:16.9]} 36... Rxb6 {[%clk 0:02:02.2]} 0-1

[Event "Late-Titled-Tuesday-Blitz-March-19-2024"]
[Site "Chess.com"]
[Date "2024.03.19"]
[Round "3"]
[White "SchmakAttack"]
[Black "Sandstad"]
[Result "1-0"]
[WhiteElo "2834"]
[BlackElo "2503"]
[TimeControl "180+1"]
[EndTime "14:25:38 PDT"]
[Termination "SchmakAttack won by resignation"]

1. d4 {[%clk 0:03:00.9]} 1... Nf6 {[%clk 0:02:58.6]} 2. c4 {[%clk 0:03:01]} 2...
e6 {[%clk 0:02:59]} 3. Nc3 {[%clk 0:02:59.7]} 3... d5 {[%clk 0:02:59.2]} 4. Nf3
{[%clk 0:02:58.1]} 4... Be7 {[%clk 0:02:58.8]} 5. Bf4 {[%clk 0:02:57.1]} 5...
O-O {[%clk 0:02:57]} 6. Rc1 {[%clk 0:02:57.4]} 6... b6 {[%clk 0:02:31.7]} 7.
cxd5 {[%clk 0:02:52.7]} 7... Nxd5 {[%clk 0:02:32.6]} 8. Nxd5 {[%clk 0:02:52.8]}
8... Qxd5 {[%clk 0:02:33.3]} 9. a3 {[%clk 0:02:46.6]} 9... c5 {[%clk 0:02:29.1]}
10. dxc5 {[%clk 0:02:27.7]} 10... Qxd1+ {[%clk 0:02:30]} 11. Rxd1 {[%clk
0:02:28.2]} 11... Bxc5 {[%clk 0:02:29.5]} 12. e3 {[%clk 0:02:28.5]} 12... Ba6
{[%clk 0:02:22.3]} 13. Bxa6 {[%clk 0:02:04.9]} 13... Nxa6 {[%clk 0:02:23.2]} 14.
b4 {[%clk 0:02:00]} 14... Be7 {[%clk 0:02:22.6]} 15. Rd7 {[%clk 0:01:59.2]}
15... Bf6 {[%clk 0:02:17.7]} 16. Ke2 {[%clk 0:01:59.7]} 16... Nb8 {[%clk
0:02:11.2]} 17. Rc7 {[%clk 0:01:52.2]} 17... Na6 {[%clk 0:02:11]} 18. Rb7 {[%clk
0:01:43.6]} 18... Rfd8 {[%clk 0:01:47.3]} 19. Rc1 {[%clk 0:01:37.4]} 19... Bb2
{[%clk 0:01:44]} 20. Rc2 {[%clk 0:01:37.7]} 20... Bf6 {[%clk 0:01:33.8]} 21. Be5
{[%clk 0:01:12.3]} 21... Bxe5 {[%clk 0:01:24.9]} 22. Nxe5 {[%clk 0:01:13.2]}
22... Kf8 {[%clk 0:01:13]} 23. Rxf7+ {[%clk 0:01:11.1]} 1-0

[Event "Late-Titled-Tuesday-Blitz-March-19-2024"]
[Site "Chess.com"]
[Date "2024.03.19"]
[Round "3"]
[White "Kiborg95"]
[Black "FairChess_on_YouTube"]
[Result "0-1"]
[WhiteElo "2767"]
[BlackElo "3151"]
[TimeControl "180+1"]
[EndTime "14:25:39 PDT"]
[Termination "FairChess_on_YouTube won by resignation"]

1. e4 {[%clk 0:02:57.3]} 1... c5 {[%clk 0:03:00.2]} 2. Nc3 {[%clk 0:02:56.6]}
2... Nc6 {[%clk 0:02:59.7]} 3. Nge2 {[%clk 0:02:56.9]} 3... g6 {[%clk
0:02:53.8]} 4. d4 {[%clk 0:02:56.9]} 4... cxd4 {[%clk 0:02:53.9]} 5. Nxd4 {[%clk
0:02:57.8]} 5... Bg7 {[%clk 0:02:54.5]} 6. Be3 {[%clk 0:02:58.6]} 6... Nf6
{[%clk 0:02:54.5]} 7. Bc4 {[%clk 0:02:59.2]} 7... O-O {[%clk 0:02:53.7]} 8. Bb3
{[%clk 0:02:59.5]} 8... d6 {[%clk 0:02:52.4]} 9. f3 {[%clk 0:02:59.5]} 9... a5
{[%clk 0:02:50.9]} 10. Ndb5 {[%clk 0:02:55.7]} 10... Nd7 {[%clk 0:02:43.5]} 11.
Qe2 {[%clk 0:02:40.1]} 11... Nc5 {[%clk 0:02:42.1]} 12. Rd1 {[%clk 0:02:03]}
12... b6 {[%clk 0:02:24.6]} 13. Bd5 {[%clk 0:01:56]} 13... Qd7 {[%clk
0:02:20.1]} 14. O-O {[%clk 0:01:38.6]} 14... Ba6 {[%clk 0:02:17.7]} 15. Qd2
{[%clk 0:00:27.8]} 15... Rac8 {[%clk 0:02:05.8]} 16. Rfe1 {[%clk 0:00:24.2]}
16... Nb4 {[%clk 0:02:00.8]} 17. a3 {[%clk 0:00:17.1]} 17... Nxd5 {[%clk
0:01:57.8]} 18. exd5 {[%clk 0:00:18]} 18... Bxb5 {[%clk 0:01:57.4]} 19. Nxb5
{[%clk 0:00:18]} 19... Qxb5 {[%clk 0:01:57]} 0-1

[Event "Late-Titled-Tuesday-Blitz-March-19-2024"]
[Site "Chess.com"]
[Date "2024.03.19"]
[Round "3"]
[White "cristiano78"]
[Black "MathiasWomacka"]
[Result "0-1"]
[WhiteElo "2267"]
[BlackElo "2511"]
[TimeControl "180+1"]
[EndTime "14:25:42 PDT"]
[Termination "MathiasWomacka won by resignation"]

1. d4 {[%clk 0:03:00.7]} 1... Nf6 {[%clk 0:02:59]} 2. c4 {[%clk 0:02:58.2]} 2...
e6 {[%clk 0:02:59.5]} 3. Nf3 {[%clk 0:02:56.1]} 3... Bb4+ {[%clk 0:02:59.5]} 4.
Bd2 {[%clk 0:02:56.1]} 4... Qe7 {[%clk 0:02:59.6]} 5. Nc3 {[%clk 0:02:55.9]}
5... b6 {[%clk 0:02:58.5]} 6. a3 {[%clk 0:02:56]} 6... Bxc3 {[%clk 0:02:57.1]}
7. Bxc3 {[%clk 0:02:56.1]} 7... Ne4 {[%clk 0:02:54.9]} 8. Rc1 {[%clk 0:02:56.4]}
8... Bb7 {[%clk 0:02:51.8]} 9. g3 {[%clk 0:02:55.7]} 9... O-O {[%clk 0:02:44.7]}
10. Bg2 {[%clk 0:02:55.6]} 10... d6 {[%clk 0:02:39.5]} 11. O-O {[%clk
0:02:55.3]} 11... Nd7 {[%clk 0:02:33.8]} 12. b4 {[%clk 0:02:54.3]} 12... Nxc3
{[%clk 0:02:31.9]} 13. Rxc3 {[%clk 0:02:54.2]} 13... c5 {[%clk 0:02:29.3]} 14.
dxc5 {[%clk 0:02:52.6]} 14... dxc5 {[%clk 0:02:27.2]} 15. Rd3 {[%clk 0:02:51]}
15... Nf6 {[%clk 0:02:21]} 16. b5 {[%clk 0:02:49.9]} 16... Rfd8 {[%clk
0:02:11.9]} 17. Ne5 {[%clk 0:02:45]} 17... Rxd3 {[%clk 0:02:09.1]} 18. Qxd3
{[%clk 0:02:44.1]} 18... Rd8 {[%clk 0:02:07.7]} 19. Qe3 {[%clk 0:02:39.8]} 19...
Bxg2 {[%clk 0:01:57.8]} 20. Kxg2 {[%clk 0:02:39.9]} 20... Qd6 {[%clk 0:01:58.1]}
21. Nc6 {[%clk 0:02:39.2]} 21... Rd7 {[%clk 0:01:57.5]} 22. Ra1 {[%clk
0:02:33.6]} 22... a6 {[%clk 0:01:50]} 23. a4 {[%clk 0:02:33.4]} 23... h6 {[%clk
0:01:48.6]} 24. a5 {[%clk 0:02:29.1]} 24... bxa5 {[%clk 0:01:44.9]} 25. Rxa5
{[%clk 0:02:28.4]} 25... axb5 {[%clk 0:01:43.5]} 26. cxb5 {[%clk 0:02:28.2]}
26... c4 {[%clk 0:01:23.7]} 27. Ra8+ {[%clk 0:02:22.1]} 27... Kh7 {[%clk
0:01:23]} 28. Qc3 {[%clk 0:02:18.5]} 28... Qd5+ {[%clk 0:01:21.5]} 29. f3 {[%clk
0:02:18.1]} 29... Qxb5 {[%clk 0:01:19.6]} 30. Ne5 {[%clk 0:02:13.9]} 30... Rc7
{[%clk 0:01:17]} 31. Ra5 {[%clk 0:02:06.7]} 31... Nd5 {[%clk 0:01:04.5]} 32.
Rxb5 {[%clk 0:02:00.9]} 32... Nxc3 {[%clk 0:01:03.6]} 33. Rb4 {[%clk 0:02:00.1]}
33... Nd5 {[%clk 0:00:58.6]} 34. Rxc4 {[%clk 0:01:59.2]} 34... Ne3+ {[%clk
0:00:58.2]} 35. Kf2 {[%clk 0:01:54.2]} 35... Nxc4 {[%clk 0:00:59.1]} 0-1

[Event "Late-Titled-Tuesday-Blitz-March-19-2024"]
[Site "Chess.com"]
[Date "2024.03.19"]
[Round "3"]
[White "Vadim_Galchenko"]
[Black "AktilekAskarovich"]
[Result "0-1"]
[WhiteElo "2601"]
[BlackElo "2400"]
[TimeControl "180+1"]
[EndTime "14:25:45 PDT"]
[Termination "AktilekAskarovich won by resignation"]

1. e4 {[%clk 0:02:58.7]} 1... c6 {[%clk 0:02:59.5]} 2. c4 {[%clk 0:02:58.7]}
2... d5 {[%clk 0:02:59.5]} 3. exd5 {[%clk 0:02:59.6]} 3... cxd5 {[%clk
0:02:59.7]} 4. cxd5 {[%clk 0:03:00.5]} 4... Nf6 {[%clk 0:02:59.9]} 5. Bb5+
{[%clk 0:02:59.9]} 5... Nbd7 {[%clk 0:02:56.2]} 6. Nc3 {[%clk 0:02:59.4]} 6...
a6 {[%clk 0:02:56.5]} 7. Be2 {[%clk 0:02:59.2]} 7... Nb6 {[%clk 0:02:54.9]} 8.
Nf3 {[%clk 0:02:57.7]} 8... Nbxd5 {[%clk 0:02:55]} 9. d4 {[%clk 0:02:56.7]} 9...
Bg4 {[%clk 0:02:53.7]} 10. Qb3 {[%clk 0:02:40]} 10... Nxc3 {[%clk 0:02:45.4]}
11. bxc3 {[%clk 0:02:34.6]} 11... Qc7 {[%clk 0:02:38]} 12. Ne5 {[%clk
0:02:21.3]} 12... Be6 {[%clk 0:02:38.2]} 13. Qa4+ {[%clk 0:02:18.6]} 13... Bd7
{[%clk 0:02:36.1]} 14. Qb3 {[%clk 0:02:04.7]} 14... e6 {[%clk 0:02:33.4]} 15.
Bf4 {[%clk 0:02:03.3]} 15... Bd6 {[%clk 0:02:31.6]} 16. O-O {[%clk 0:01:47.1]}
16... O-O {[%clk 0:02:31]} 17. Nxd7 {[%clk 0:01:35.3]} 17... Qxd7 {[%clk
0:02:19.2]} 18. Bxd6 {[%clk 0:01:34.5]} 18... Qxd6 {[%clk 0:02:20.1]} 19. Qxb7
{[%clk 0:01:34.8]} 19... Nd5 {[%clk 0:02:20.8]} 20. Rac1 {[%clk 0:01:30.6]}
20... Rfb8 {[%clk 0:02:19.7]} 21. Qxa8 {[%clk 0:01:23.3]} 21... Rxa8 {[%clk
0:02:19.5]} 22. c4 {[%clk 0:01:23.2]} 22... Nf4 {[%clk 0:02:19.6]} 23. Bf3
{[%clk 0:01:23.5]} 23... Rc8 {[%clk 0:02:19.6]} 24. g3 {[%clk 0:01:20.9]} 24...
Nh3+ {[%clk 0:02:14.4]} 25. Kg2 {[%clk 0:01:18.8]} 25... Ng5 {[%clk 0:02:14.5]}
26. Bb7 {[%clk 0:01:15.4]} 26... Rc7 {[%clk 0:02:11]} 27. c5 {[%clk 0:01:12.4]}
27... Qxd4 {[%clk 0:02:10.6]} 28. Rfd1 {[%clk 0:01:11.8]} 28... Qf6 {[%clk
0:02:10.1]} 29. Bxa6 {[%clk 0:01:04.1]} 29... Qf3+ {[%clk 0:02:09.1]} 30. Kf1
{[%clk 0:01:04.2]} 30... h5 {[%clk 0:02:03.5]} 31. h4 {[%clk 0:00:54.5]} 31...
Ne4 {[%clk 0:01:59.1]} 32. Rc2 {[%clk 0:00:44]} 32... Qxd1+ {[%clk 0:01:56.4]}
0-1

[Event "Late-Titled-Tuesday-Blitz-March-19-2024"]
[Site "Chess.com"]
[Date "2024.03.19"]
[Round "3"]
[White "biostatistician"]
[Black "wallowss"]
[Result "1-0"]
[WhiteElo "2580"]
[BlackElo "2138"]
[TimeControl "180+1"]
[EndTime "14:25:45 PDT"]
[Termination "biostatistician won by checkmate"]

1. d4 {[%clk 0:03:00]} 1... Nf6 {[%clk 0:02:37]} 2. Nf3 {[%clk 0:02:58.6]} 2...
g6 {[%clk 0:02:35.4]} 3. c4 {[%clk 0:02:58.3]} 3... Bg7 {[%clk 0:02:35.5]} 4.
Nc3 {[%clk 0:02:59.2]} 4... d5 {[%clk 0:02:36]} 5. cxd5 {[%clk 0:03:00.1]} 5...
Nxd5 {[%clk 0:02:36.8]} 6. e4 {[%clk 0:03:01]} 6... Nxc3 {[%clk 0:02:37.2]} 7.
bxc3 {[%clk 0:03:01.9]} 7... c5 {[%clk 0:02:38]} 8. Be3 {[%clk 0:03:01.8]} 8...
Nc6 {[%clk 0:02:38.2]} 9. Rc1 {[%clk 0:03:01.4]} 9... O-O {[%clk 0:02:38.6]} 10.
d5 {[%clk 0:03:00.7]} 10... Na5 {[%clk 0:02:28.1]} 11. Bxc5 {[%clk 0:02:59.6]}
11... b6 {[%clk 0:02:28.5]} 12. Bd4 {[%clk 0:02:59.2]} 12... Bh6 {[%clk
0:02:25.1]} 13. Rc2 {[%clk 0:02:55.1]} 13... f5 {[%clk 0:02:14.3]} 14. Bd3
{[%clk 0:02:49.6]} 14... fxe4 {[%clk 0:02:08.5]} 15. Bxe4 {[%clk 0:02:50.5]}
15... Bf5 {[%clk 0:02:09]} 16. Qe2 {[%clk 0:02:45.3]} 16... Qd7 {[%clk
0:00:48.4]} 17. O-O {[%clk 0:02:43.4]} 17... Rac8 {[%clk 0:00:36.3]} 18. Re1
{[%clk 0:02:40]} 18... Nc4 {[%clk 0:00:30.4]} 19. Bxf5 {[%clk 0:02:36]} 19...
Qxf5 {[%clk 0:00:14.5]} 20. Qxe7 {[%clk 0:02:35.5]} 20... Qxc2 {[%clk
0:00:12.7]} 21. Qe6+ {[%clk 0:02:35.5]} 21... Rf7 {[%clk 0:00:09.8]} 22. Qxc8+
{[%clk 0:02:35.6]} 22... Bf8 {[%clk 0:00:10.3]} 23. Qxc4 {[%clk 0:02:33]} 23...
g5 {[%clk 0:00:08.1]} 24. d6 {[%clk 0:02:25.7]} 24... g4 {[%clk 0:00:08.1]} 25.
Ng5 {[%clk 0:02:24.7]} 25... Qd2 {[%clk 0:00:05.5]} 26. Qxf7# {[%clk 0:02:23.4]}
1-0

[Event "Late-Titled-Tuesday-Blitz-March-19-2024"]
[Site "Chess.com"]
[Date "2024.03.19"]
[Round "3"]
[White "NovakRatko"]
[Black "ACollins05"]
[Result "0-1"]
[WhiteElo "2412"]
[BlackElo "2556"]
[TimeControl "180+1"]
[EndTime "14:25:49 PDT"]
[Termination "ACollins05 won by resignation"]

1. d4 {[%clk 0:02:01.2]} 1... d5 {[%clk 0:02:57.6]} 2. c4 {[%clk 0:02:01.5]}
2... e6 {[%clk 0:02:57.7]} 3. cxd5 {[%clk 0:02:01.9]} 3... exd5 {[%clk
0:02:57.7]} 4. Nc3 {[%clk 0:02:02.8]} 4... c6 {[%clk 0:02:57]} 5. f3 {[%clk
0:02:02.7]} 5... Nf6 {[%clk 0:02:52.7]} 6. e4 {[%clk 0:02:02.6]} 6... Bb4 {[%clk
0:02:49.6]} 7. e5 {[%clk 0:02:02.1]} 7... Nfd7 {[%clk 0:02:49]} 8. f4 {[%clk
0:02:02.2]} 8... c5 {[%clk 0:02:49.1]} 9. dxc5 {[%clk 0:02:00.2]} 9... Nxc5
{[%clk 0:02:45.5]} 10. Nf3 {[%clk 0:01:55.9]} 10... Nc6 {[%clk 0:02:42.1]} 11.
Bb5 {[%clk 0:01:55.3]} 11... O-O {[%clk 0:02:40.4]} 12. O-O {[%clk 0:01:54.4]}
12... Bxc3 {[%clk 0:02:39.8]} 13. bxc3 {[%clk 0:01:54.5]} 13... Ne4 {[%clk
0:02:40.3]} 14. Bb2 {[%clk 0:01:45.3]} 14... Qb6+ {[%clk 0:02:40]} 15. Nd4
{[%clk 0:01:16]} 15... Nxd4 {[%clk 0:02:40.1]} 16. Qxd4 {[%clk 0:01:15.6]} 16...
Qxb5 {[%clk 0:02:40.1]} 17. Ba3 {[%clk 0:01:13.1]} 17... Rd8 {[%clk 0:02:36.4]}
18. Rad1 {[%clk 0:00:58.8]} 18... Bg4 {[%clk 0:02:34.9]} 19. Rb1 {[%clk
0:00:55.3]} 19... Qc4 {[%clk 0:02:29.8]} 20. Rxb7 {[%clk 0:00:51.8]} 20... Nxc3
{[%clk 0:02:21.4]} 21. Qxc4 {[%clk 0:00:49.6]} 21... dxc4 {[%clk 0:02:22.3]} 22.
h3 {[%clk 0:00:43]} 22... Bf5 {[%clk 0:02:18.7]} 23. g4 {[%clk 0:00:34.2]} 23...
Be4 {[%clk 0:02:18.6]} 24. Rc7 {[%clk 0:00:32.3]} 24... Rd2 {[%clk 0:02:18.3]}
25. Rxc4 {[%clk 0:00:24.3]} 25... Rg2+ {[%clk 0:02:10.8]} 26. Kh1 {[%clk
0:00:22.6]} 26... Rxa2+ {[%clk 0:02:10.5]} 27. Rxe4 {[%clk 0:00:20.8]} 27...
Nxe4 {[%clk 0:02:11.4]} 0-1

[Event "Late-Titled-Tuesday-Blitz-March-19-2024"]
[Site "Chess.com"]
[Date "2024.03.19"]
[Round "3"]
[White "Evandro_Barbosa"]
[Black "GHANDEEVAM2003"]
[Result "1-0"]
[WhiteElo "2733"]
[BlackElo "3030"]
[TimeControl "180+1"]
[EndTime "14:26:00 PDT"]
[Termination "Evandro_Barbosa won by resignation"]

1. e4 {[%clk 0:02:58.6]} 1... g6 {[%clk 0:02:59.2]} 2. d4 {[%clk 0:02:56]} 2...
Bg7 {[%clk 0:02:59.7]} 3. Nc3 {[%clk 0:02:55.7]} 3... c6 {[%clk 0:02:58.9]} 4.
Nf3 {[%clk 0:02:54.6]} 4... d5 {[%clk 0:02:58.5]} 5. h3 {[%clk 0:02:54]} 5...
Nf6 {[%clk 0:02:57.6]} 6. e5 {[%clk 0:02:52.7]} 6... Ne4 {[%clk 0:02:57.9]} 7.
Nxe4 {[%clk 0:02:52.8]} 7... dxe4 {[%clk 0:02:58.5]} 8. Ng5 {[%clk 0:02:53.3]}
8... c5 {[%clk 0:02:49.8]} 9. Bc4 {[%clk 0:02:52.9]} 9... O-O {[%clk 0:02:48.5]}
10. c3 {[%clk 0:02:53]} 10... cxd4 {[%clk 0:02:46.9]} 11. cxd4 {[%clk
0:02:53.9]} 11... Nc6 {[%clk 0:02:46.7]} 12. Be3 {[%clk 0:02:52.9]} 12... Qa5+
{[%clk 0:02:30.5]} 13. Kf1 {[%clk 0:02:52.1]} 13... b5 {[%clk 0:02:19.9]} 14.
Bb3 {[%clk 0:02:51.5]} 14... Bb7 {[%clk 0:02:16]} 15. h4 {[%clk 0:02:51.8]}
15... Nb4 {[%clk 0:02:05]} 16. h5 {[%clk 0:02:47.2]} 16... Nd5 {[%clk
0:02:05.2]} 17. Qg4 {[%clk 0:02:38.6]} 17... h6 {[%clk 0:01:56.7]} 18. hxg6
{[%clk 0:02:11]} 18... hxg5 {[%clk 0:01:56]} 19. Qh3 {[%clk 0:02:02.9]} 19...
Rfd8 {[%clk 0:01:11]} 20. gxf7+ {[%clk 0:01:59.8]} 20... Kxf7 {[%clk 0:01:11.9]}
21. Qh5+ {[%clk 0:01:37.5]} 21... Kf8 {[%clk 0:01:07]} 22. e6 {[%clk 0:01:19.5]}
1-0

[Event "Late-Titled-Tuesday-Blitz-March-19-2024"]
[Site "Chess.com"]
[Date "2024.03.19"]
[Round "3"]
[White "Onischuk_V"]
[Black "EvilMorty23"]
[Result "1-0"]
[WhiteElo "2805"]
[BlackElo "2488"]
[TimeControl "180+1"]
[EndTime "14:26:20 PDT"]
[Termination "Onischuk_V won by checkmate"]

1. e4 {[%clk 0:03:00.9]} 1... e6 {[%clk 0:02:59.6]} 2. d4 {[%clk 0:03:00.4]}
2... d5 {[%clk 0:03:00.5]} 3. Bd3 {[%clk 0:03:00]} 3... Nf6 {[%clk 0:03:00.3]}
4. e5 {[%clk 0:02:59.4]} 4... Nfd7 {[%clk 0:03:01]} 5. f4 {[%clk 0:02:57.8]}
5... c5 {[%clk 0:03:01.6]} 6. c3 {[%clk 0:02:58.1]} 6... Nc6 {[%clk 0:03:02.1]}
7. Nf3 {[%clk 0:02:45.3]} 7... Qb6 {[%clk 0:03:01.6]} 8. Be2 {[%clk 0:02:37.5]}
8... cxd4 {[%clk 0:02:59.2]} 9. cxd4 {[%clk 0:02:37.1]} 9... f6 {[%clk
0:02:57.7]} 10. Nc3 {[%clk 0:02:33.1]} 10... Be7 {[%clk 0:02:46.7]} 11. a3
{[%clk 0:02:14.4]} 11... O-O {[%clk 0:02:45.2]} 12. Na4 {[%clk 0:01:51.9]} 12...
Qd8 {[%clk 0:02:37.5]} 13. Be3 {[%clk 0:01:50.2]} 13... Nb6 {[%clk 0:02:29.7]}
14. Nc3 {[%clk 0:01:46.3]} 14... Nc4 {[%clk 0:02:29.8]} 15. Bxc4 {[%clk
0:01:44.3]} 15... dxc4 {[%clk 0:02:30.7]} 16. Qe2 {[%clk 0:01:38.9]} 16... Na5
{[%clk 0:02:27.9]} 17. Rd1 {[%clk 0:01:37.4]} 17... Bd7 {[%clk 0:02:17.7]} 18.
d5 {[%clk 0:01:36.9]} 18... exd5 {[%clk 0:02:13.2]} 19. Nxd5 {[%clk 0:01:36.5]}
19... Ba4 {[%clk 0:02:02.7]} 20. Nxf6+ {[%clk 0:01:31.6]} 20... gxf6 {[%clk
0:01:53.6]} 21. Rxd8 {[%clk 0:01:32.1]} 21... Raxd8 {[%clk 0:01:54.1]} 22. O-O
{[%clk 0:01:32.4]} 22... Rd3 {[%clk 0:01:48.1]} 23. Bd4 {[%clk 0:01:21.8]} 23...
Nb3 {[%clk 0:01:34.2]} 24. exf6 {[%clk 0:01:16.2]} 24... Bxf6 {[%clk 0:01:21.2]}
25. Qe6+ {[%clk 0:01:13.6]} 25... Kg7 {[%clk 0:01:20.3]} 26. Qe7+ {[%clk
0:01:10.8]} 26... Kg6 {[%clk 0:01:10.2]} 27. f5+ {[%clk 0:01:09.8]} 27... Kh5
{[%clk 0:01:03.4]} 28. Qxh7+ {[%clk 0:01:08.8]} 28... Kg4 {[%clk 0:01:03]} 29.
Qh3+ {[%clk 0:01:01.7]} 29... Kf4 {[%clk 0:01:03.3]} 30. Nd2+ {[%clk 0:00:58.3]}
30... Kg5 {[%clk 0:00:57.9]} 31. Ne4# {[%clk 0:00:58.4]} 1-0

[Event "Late-Titled-Tuesday-Blitz-March-19-2024"]
[Site "Chess.com"]
[Date "2024.03.19"]
[Round "3"]
[White "CarlosjPineror"]
[Black "HajiyevKanan"]
[Result "0-1"]
[WhiteElo "2669"]
[BlackElo "2515"]
[TimeControl "180+1"]
[EndTime "14:26:20 PDT"]
[Termination "HajiyevKanan won by resignation"]

1. e4 {[%clk 0:03:00.9]} 1... c6 {[%clk 0:02:59.7]} 2. d4 {[%clk 0:02:57.4]}
2... d5 {[%clk 0:03:00.6]} 3. exd5 {[%clk 0:02:56.8]} 3... cxd5 {[%clk
0:03:01.5]} 4. Bd3 {[%clk 0:02:57.4]} 4... Nc6 {[%clk 0:03:01.3]} 5. c3 {[%clk
0:02:58.3]} 5... Qc7 {[%clk 0:03:01.8]} 6. h3 {[%clk 0:02:59]} 6... Nf6 {[%clk
0:03:02]} 7. Nf3 {[%clk 0:02:59.7]} 7... g6 {[%clk 0:03:02.3]} 8. O-O {[%clk
0:03:00.1]} 8... Bg7 {[%clk 0:03:03]} 9. Bf4 {[%clk 0:03:00.6]} 9... Qxf4 {[%clk
0:03:02.5]} 10. Re1 {[%clk 0:02:52.6]} 10... O-O {[%clk 0:03:01.7]} 11. Nbd2
{[%clk 0:02:51.3]} 11... Bf5 {[%clk 0:03:01.1]} 12. Bxf5 {[%clk 0:02:31.9]}
12... Qxf5 {[%clk 0:02:59.5]} 13. Qe2 {[%clk 0:02:29]} 13... Rfe8 {[%clk
0:02:56.9]} 14. Ne5 {[%clk 0:02:23.5]} 14... Nxe5 {[%clk 0:02:56]} 15. dxe5
{[%clk 0:02:24.4]} 15... Ne4 {[%clk 0:02:55.2]} 16. Nxe4 {[%clk 0:02:20.8]}
16... dxe4 {[%clk 0:02:53.1]} 17. Qxe4 {[%clk 0:02:21.7]} 17... Qxe4 {[%clk
0:02:53.2]} 18. Rxe4 {[%clk 0:02:20.5]} 18... Red8 {[%clk 0:02:53.7]} 19. Rae1
{[%clk 0:02:16]} 19... Rd2 {[%clk 0:02:53.6]} 20. R1e2 {[%clk 0:02:12.3]} 20...
Rad8 {[%clk 0:02:49.8]} 21. f4 {[%clk 0:02:05.4]} 21... e6 {[%clk 0:02:45]} 22.
Kf2 {[%clk 0:02:02.8]} 22... Bf8 {[%clk 0:02:44.8]} 23. b4 {[%clk 0:01:53.3]}
23... b5 {[%clk 0:02:40.6]} 24. a3 {[%clk 0:01:50.3]} 24... R8d3 {[%clk
0:02:38]} 25. Rxd2 {[%clk 0:01:46.7]} 25... Rxd2+ {[%clk 0:02:37.1]} 26. Re2
{[%clk 0:01:40]} 26... Rxe2+ {[%clk 0:02:35.6]} 27. Kxe2 {[%clk 0:01:40.9]}
27... Bh6 {[%clk 0:02:33.8]} 28. Ke3 {[%clk 0:01:38.1]} 28... Kf8 {[%clk
0:02:27.5]} 29. Ke4 {[%clk 0:01:34.1]} 29... Ke7 {[%clk 0:02:26.1]} 30. g4
{[%clk 0:01:29.4]} 30... Kd7 {[%clk 0:02:21.5]} 31. g5 {[%clk 0:01:26.6]} 31...
Bf8 {[%clk 0:02:21.1]} 32. Kd4 {[%clk 0:01:23.8]} 32... Kc6 {[%clk 0:02:21.2]}
33. Ke4 {[%clk 0:01:19.1]} 33... h6 {[%clk 0:02:16.2]} 34. h4 {[%clk 0:01:16.6]}
34... h5 {[%clk 0:02:15.3]} 35. Kd4 {[%clk 0:01:12.7]} 35... Be7 {[%clk
0:02:15.5]} 36. c4 {[%clk 0:01:09.7]} 36... bxc4 {[%clk 0:02:14.8]} 37. Kxc4
{[%clk 0:01:10.6]} 37... a6 {[%clk 0:02:13.1]} 38. a4 {[%clk 0:01:08]} 38... Bd8
{[%clk 0:02:13.4]} 39. b5+ {[%clk 0:00:40.5]} 39... axb5+ {[%clk 0:02:13.3]} 40.
axb5+ {[%clk 0:00:39.4]} 40... Kb6 {[%clk 0:02:14]} 41. Kd4 {[%clk 0:00:36.1]}
41... Kxb5 {[%clk 0:02:13.9]} 42. Ke4 {[%clk 0:00:36.2]} 42... Kc4 {[%clk
0:02:13.6]} 43. Kf3 {[%clk 0:00:36.5]} 43... Kd3 {[%clk 0:02:12.7]} 44. Kg3
{[%clk 0:00:37]} 44... Ke4 {[%clk 0:02:12.5]} 45. Kh3 {[%clk 0:00:37.9]} 45...
Kxf4 {[%clk 0:02:12.7]} 46. Kh2 {[%clk 0:00:38.2]} 46... Kxe5 {[%clk 0:02:13]}
47. Kg2 {[%clk 0:00:39.1]} 47... Kf5 {[%clk 0:02:13.5]} 48. Kg1 {[%clk 0:00:40]}
48... Kg4 {[%clk 0:02:14]} 49. Kh1 {[%clk 0:00:40.9]} 49... Kxh4 {[%clk
0:02:14.6]} 50. Kg2 {[%clk 0:00:41.8]} 50... Bxg5 {[%clk 0:02:14.6]} 51. Kh1
{[%clk 0:00:42.7]} 51... e5 {[%clk 0:02:15.2]} 52. Kg2 {[%clk 0:00:43.6]} 52...
Kg4 {[%clk 0:02:15.6]} 53. Kh1 {[%clk 0:00:44.5]} 53... Kg3 {[%clk 0:02:16.3]}
54. Kg1 {[%clk 0:00:44.9]} 54... e4 {[%clk 0:02:16.9]} 55. Kh1 {[%clk
0:00:45.8]} 55... h4 {[%clk 0:02:17.5]} 56. Kg1 {[%clk 0:00:46]} 56... f5 {[%clk
0:02:17.5]} 57. Kf1 {[%clk 0:00:46.9]} 57... f4 {[%clk 0:02:18.1]} 58. Kg1
{[%clk 0:00:47.8]} 58... e3 {[%clk 0:02:18.7]} 59. Kh1 {[%clk 0:00:48.7]} 59...
f3 {[%clk 0:02:19.4]} 0-1